Workbook

Sheet 5cntrptys
B7: Starting Point
C8: =TRANSPOSE(B9:B13) -> Cntrpty 1 | D8: Cntrpty 2 | E8: Cntrpty 3 | F8: Cntrpty 4 | G8: Cntrpty 5 | H8: Total
B9: Cntrpty 1 | D9: 95 | E9: 0 | F9: -105 | G9: 20 | H9: =SUM(C9:G9) -> 10 | J9: Total Notional | K9: =SUMIF(C9:G13,">0")-SUMIF(C9:G13,"<0") -> 1250
B10: Cntrpty 2 | C10: =-D9 -> -95 | E10: 85 | F10: -60 | G10: 95 | H10: =SUM(C10:G10) -> 25 | J10: Total Notional^2 | K10: =SUMPRODUCT(C9:G13,C9:G13) -> 102450
B11: Cntrpty 3 | C11: =-E9 -> 0 | D11: =-E10 -> -85 | F11: 70 | G11: -20 | H11: =SUM(C11:G11) -> -35 | J11: Zeros | K11: =COUNTIF(C9:H13,"=0") -> 2
B12: Cntrpty 4 | C12: =-F9 -> 105 | D12: =-F10 -> 60 | E12: =-F11 -> -70 | G12: -75 | H12: =SUM(C12:G12) -> 20
B13: Cntrpty 5 | C13: =-G9 -> -20 | D13: =-G10 -> -95 | E13: =-G11 -> 20 | F13: =-G12 -> 75 | H13: =SUM(C13:G13) -> -20
B15: Solver
C16: =TRANSPOSE(B17:B21) -> Cntrpty 1 | D16: Cntrpty 2 | E16: Cntrpty 3 | F16: Cntrpty 4 | G16: Cntrpty 5 | H16: Total
B17: Cntrpty 1 | D17: 10 | E17: 0 | F17: 0 | G17: 0 | H17: =SUM(C17:G17) -> 10 | I17: =IF(ABS(H9-H17)>0.0001,"FAIL","") ->  | J17: Total Notional | K17: =SUMIF(C17:G21,">0")-SUMIF(C17:G21,"<0") -> 130
B18: Cntrpty 2 | C18: =-D17 -> -10 | E18: 35 | F18: 0 | G18: 0 | H18: =SUM(C18:G18) -> 25 | I18: =IF(ABS(H10-H18)>0.0001,"FAIL","") ->  | J18: Total Notional^2 | K18: =SUMPRODUCT(C17:G21,C17:G21) -> 3450
B19: Cntrpty 3 | C19: =-E17 -> 0 | D19: =-E18 -> -35 | F19: 0 | G19: 0 | H19: =SUM(C19:G19) -> -35 | I19: =IF(ABS(H11-H19)>0.0001,"FAIL","") ->  | J19: Zeros | K19: =COUNTIF(C17:H21,"=0") -> 14
B20: Cntrpty 4 | C20: =-F17 -> 0 | D20: =-F18 -> 0 | E20: =-F19 -> 0 | G20: 20 | H20: =SUM(C20:G20) -> 20 | I20: =IF(ABS(H12-H20)>0.0001,"FAIL","") -> 
B21: Cntrpty 5 | C21: =-G17 -> 0 | D21: =-G18 -> 0 | E21: =-G19 -> 0 | F21: =-G20 -> -20 | H21: =SUM(C21:G21) -> -20 | I21: =IF(ABS(H13-H21)>0.0001,"FAIL","") -> 
B23: Tri Compression Algorithm
C24: =TRANSPOSE(B25:B29) -> Cntrpty 1 | D24: Cntrpty 2 | E24: Cntrpty 3 | F24: Cntrpty 4 | G24: Cntrpty 5 | H24: Total
B25: Cntrpty 1 | C25: =TriCompress(C9:G13) -> 0 | D25: 0 | E25: 0 | F25: 10 | G25: 0 | H25: =SUM(C25:G25) -> 10 | I25: =IF(ABS(H9-H25)>0.0001,"FAIL","") ->  | J25: Total Notional | K25: =SUMIF(C25:G29,">0")-SUMIF(C25:G29,"<0") -> 140
B26: Cntrpty 2 | C26: 0 | D26: 0 | E26: 0 | F26: 0 | G26: 25 | H26: =SUM(C26:G26) -> 25 | I26: =IF(ABS(H10-H26)>0.0001,"FAIL","") ->  | J26: Total Notional^2 | K26: =SUMPRODUCT(C25:G29,C25:G29) -> 3300
B27: Cntrpty 3 | C27: 0 | D27: 0 | E27: 0 | F27: -30 | G27: -5 | H27: -35 | I27: =IF(ABS(H11-H27)>0.0001,"FAIL","") ->  | J27: Zeros | K27: =COUNTIF(C25:H29,"=0") -> 12
B28: Cntrpty 4 | C28: -10 | D28: 0 | E28: 30 | F28: 0 | G28: 0 | H28: 20 | I28: =IF(ABS(H12-H28)>0.0001,"FAIL","") -> 
B29: Cntrpty 5 | C29: 0 | D29: -25 | E29: 5 | F29: 0 | G29: 0 | H29: -20 | I29: =IF(ABS(H13-H29)>0.0001,"FAIL","") -> 

Sheet 10cntrptys
B7: Starting Point
C8: Cntrpty 1 | D8: Cntrpty 2 | E8: Cntrpty 3 | F8: Cntrpty 4 | G8: Cntrpty 5 | H8: Cntrpty 6 | I8: Cntrpty 7 | J8: Cntrpty 8 | K8: Cntrpty 9 | L8: Cntrpty 10 | M8: Total
B9: Cntrpty 1 | D9: 50 | E9: 30 | F9: 20 | G9: -40 | H9: -50 | I9: 30 | J9: -40 | K9: 50 | L9: -50 | M9: =SUM(C9:L9) -> 0 | O9: Total Notional | P9: =SUMIF(C9:L18,">0")-SUMIF(C9:L18,"<0") -> 2840
B10: Cntrpty 2 | C10: =-TRANSPOSE(D9:L9) -> -50 | E10: 50 | F10: -20 | G10: 40 | H10: -20 | I10: -30 | J10: 30 | K10: -20 | L10: 40 | M10: 20 | O10: Total Notional^2 | P10: =SUMPRODUCT(C9:L18,C9:L18) -> 108800
B11: Cntrpty 3 | C11: -30 | D11: =-TRANSPOSE(E10:L10) -> -50 | F11: 40 | G11: 60 | H11: -30 | I11: 40 | J11: -10 | K11: 30 | L11: 0 | M11: 50 | O11: Connections | P11: =(COUNTIF(C9:L18,">0.00001")+COUNTIF(C9:L18,"<-0.00001"))/2 -> 43
B12: Cntrpty 4 | C12: -20 | D12: 20 | E12: =-TRANSPOSE(F11:L11) -> -40 | G12: 20 | H12: -50 | I12: -50 | J12: -20 | K12: 40 | L12: 40 | M12: -60
B13: Cntrpty 5 | C13: 40 | D13: -40 | E13: -60 | F13: =-TRANSPOSE(G12:L12) -> -20 | H13: -20 | I13: 0 | J13: 20 | K13: 10 | L13: -20 | M13: -90
B14: Cntrpty 6 | C14: 50 | D14: 20 | E14: 30 | F14: 50 | G14: =-TRANSPOSE(H13:L13) -> 20 | I14: -50 | J14: 20 | K14: -50 | L14: 20 | M14: 110
B15: Cntrpty 7 | C15: -30 | D15: 30 | E15: -40 | F15: 50 | G15: 0 | H15: =-TRANSPOSE(I14:L14) -> 50 | J15: -50 | K15: 20 | L15: 20 | M15: 50
B16: Cntrpty 8 | C16: 40 | D16: -30 | E16: 10 | F16: 20 | G16: -20 | H16: -20 | I16: =-TRANSPOSE(J15:L15) -> 50 | K16: 20 | L16: 30 | M16: 100
B17: Cntrpty 9 | C17: -50 | D17: 20 | E17: -30 | F17: -40 | G17: -10 | H17: 50 | I17: -20 | J17: =-TRANSPOSE(K16:L16) -> -20 | L17: 30 | M17: -70
B18: Cntrpty 10 | C18: 50 | D18: -40 | E18: 0 | F18: -40 | G18: 20 | H18: -20 | I18: -20 | J18: -30 | K18: =-TRANSPOSE(L17) -> -30 | M18: -110
B20: Solution
C21: Cntrpty 1 | D21: Cntrpty 2 | E21: Cntrpty 3 | F21: Cntrpty 4 | G21: Cntrpty 5 | H21: Cntrpty 6 | I21: Cntrpty 7 | J21: Cntrpty 8 | K21: Cntrpty 9 | L21: Cntrpty 10 | M21: Total
B22: Cntrpty 1 | C22: =TriCompress(C9:L18) -> 0 | D22: 0 | E22: 0 | F22: 0 | G22: 0 | H22: 0 | I22: 0 | J22: 0 | K22: 0 | L22: 0 | M22: =SUM(C22:L22) -> 0 | N22: =IF(ABS(M9-M22)>0.0001,"FAIL","") ->  | O22: Total Notional | P22: =SUMIF(C22:L31,">0")-SUMIF(C22:L31,"<0") -> 840
B23: Cntrpty 2 | C23: 0 | D23: 0 | E23: 0 | F23: 0 | G23: 0 | H23: 0 | I23: 0 | J23: 0 | K23: 0 | L23: 20 | M23: 20 | O23: Total Notional^2 | P23: =SUMPRODUCT(C22:L31,C22:L31) -> 46800
B24: Cntrpty 3 | C24: 0 | D24: 0 | E24: 0 | F24: 0 | G24: 0 | H24: 40 | I24: 0 | J24: 10 | K24: 0 | L24: 0 | M24: 50 | O24: Connections | P24: =(COUNTIF(C22:L31,">0.00001")+COUNTIF(C22:L31,"<-0.00001"))/2 -> 12
B25: Cntrpty 4 | C25: 0 | D25: 0 | E25: 0 | F25: 0 | G25: 0 | H25: 0 | I25: 0 | J25: -60 | K25: 0 | L25: 0 | M25: -60
B26: Cntrpty 5 | C26: 0 | D26: 0 | E26: 0 | F26: 0 | G26: 0 | H26: -110 | I26: 0 | J26: 20 | K26: 0 | L26: 0 | M26: -90
B27: Cntrpty 6 | C27: 0 | D27: 0 | E27: -40 | F27: 0 | G27: 110 | H27: 0 | I27: 0 | J27: 0 | K27: 30 | L27: 10 | M27: 110
B28: Cntrpty 7 | C28: 0 | D28: 0 | E28: 0 | F28: 0 | G28: 0 | H28: 0 | I28: 0 | J28: 0 | K28: 20 | L28: 30 | M28: 50
B29: Cntrpty 8 | C29: 0 | D29: 0 | E29: -10 | F29: 60 | G29: -20 | H29: 0 | I29: 0 | J29: 0 | K29: 20 | L29: 50 | M29: 100
B30: Cntrpty 9 | C30: 0 | D30: 0 | E30: 0 | F30: 0 | G30: 0 | H30: -30 | I30: -20 | J30: -20 | K30: 0 | L30: 0 | M30: -70
B31: Cntrpty 10 | C31: 0 | D31: -20 | E31: 0 | F31: 0 | G31: 0 | H31: -10 | I31: -30 | J31: -50 | K31: 0 | L31: 0 | M31: -110
B33: Solution | N33: =IF(ABS(M22-M33)>0.0001,"FAIL","") -> 
C34: Cntrpty 1 | D34: Cntrpty 2 | E34: Cntrpty 3 | F34: Cntrpty 4 | G34: Cntrpty 5 | H34: Cntrpty 6 | I34: Cntrpty 7 | J34: Cntrpty 8 | K34: Cntrpty 9 | L34: Cntrpty 10 | M34: Total
B35: Cntrpty 1 | D35: 50 | E35: 30 | F35: 20 | G35: -40 | H35: -50 | I35: 30 | J35: -40 | K35: 50 | L35: -50 | M35: =SUM(C35:L35) -> 0 | O35: Total Notional | P35: =SUMIF(C35:L44,">0")-SUMIF(C35:L44,"<0") -> 2840
B36: Cntrpty 2 | C36: =-TRANSPOSE(D35:L35) -> -50 | E36: 50 | F36: -20 | G36: 40 | H36: -20 | I36: -30 | J36: 30 | K36: -20 | L36: 40 | M36: 20 | O36: Total Notional^2 | P36: =SUMPRODUCT(C35:L44,C35:L44) -> 108800
B37: Cntrpty 3 | C37: -30 | D37: =-TRANSPOSE(E36:L36) -> -50 | F37: 40 | G37: 60 | H37: -30 | I37: 40 | J37: -10 | K37: 30 | L37: 0 | M37: 50 | O37: Connections | P37: =(COUNTIF(C35:L44,">0.00001")+COUNTIF(C35:L44,"<-0.00001"))/2 -> 43
B38: Cntrpty 4 | C38: -20 | D38: 20 | E38: =-TRANSPOSE(F37:L37) -> -40 | G38: 20 | H38: -50 | I38: -50 | J38: -20 | K38: 40 | L38: 40 | M38: -60
B39: Cntrpty 5 | C39: 40 | D39: -40 | E39: -60 | F39: =-TRANSPOSE(G38:L38) -> -20 | H39: -20 | I39: 0 | J39: 20 | K39: 10 | L39: -20 | M39: -90
B40: Cntrpty 6 | C40: 50 | D40: 20 | E40: 30 | F40: 50 | G40: =-TRANSPOSE(H39:L39) -> 20 | I40: -50 | J40: 20 | K40: -50 | L40: 20 | M40: 110
B41: Cntrpty 7 | C41: -30 | D41: 30 | E41: -40 | F41: 50 | G41: 0 | H41: =-TRANSPOSE(I40:L40) -> 50 | J41: -50 | K41: 20 | L41: 20 | M41: 50
B42: Cntrpty 8 | C42: 40 | D42: -30 | E42: 10 | F42: 20 | G42: -20 | H42: -20 | I42: =-TRANSPOSE(J41:L41) -> 50 | K42: 20 | L42: 30 | M42: 100
B43: Cntrpty 9 | C43: -50 | D43: 20 | E43: -30 | F43: -40 | G43: -10 | H43: 50 | I43: -20 | J43: =-TRANSPOSE(K42:L42) -> -20 | L43: 30 | M43: -70
B44: Cntrpty 10 | C44: 50 | D44: -40 | E44: 0 | F44: -40 | G44: 20 | H44: -20 | I44: -20 | J44: -30 | K44: =-TRANSPOSE(L43) -> -30 | M44: -110
